bitfinex/quotes_ETHUSD_20250314
["timestamp","ask_amount","ask_price","bid_price","bid_amount"]
[1741966122108,0.03813944,1940.1,1939.6,10.02739813]
[1741966122318,5.15482,1940.0,1939.6,9.03655177]
[1741966122730,0.03813944,1940.0,1939.6,0.39675813]
[1741966122941,0.03813944,1940.0,1939.5,11.29574]
[1741966123236,5.15488,1940.0,1939.5,11.29574]
[1741966123440,5.15491,1939.9,1939.5,10.57684]
[1741966123637,5.19304944,1939.9,1939.4,5.15622]
[1741966123937,5.97868,1939.7,1939.4,5.415]
[1741966124108,0.8231,1939.7,1939.4,10.96099251]
[1741966124435,5.97857,1939.7,1939.4,10.96099251]
[1741966125342,0.8231,1939.7,1939.4,10.96099251]
[1741966125637,0.8231,1939.7,1939.4,10.96083251]
[1741966126207,5.97862,1939.7,1939.4,5.80478251]
[1741966126446,0.8231,1939.7,1939.4,10.96090251]
[1741966126829,0.03813944,1939.6,1939.4,0.38978251]
[1741966127023,5.19394944,1939.6,1939.2,5.15667]
[1741966127544,5.19394944,1939.6,1939.2,5.15662]
[1741966127747,10.34980944,1939.6,1939.2,5.15662]
[1741966128125,10.34975944,1939.6,1939.2,5.15662]
[1741966128457,5.19394944,1939.6,1939.2,10.31326]
[1741966128652,5.19394944,1939.6,1939.2,5.15662]
[1741966128852,5.19394944,1939.6,1939.3,5.15649]
[1741966129056,6.31120038,1939.6,1939.2,10.31326]
[1741966129558,6.27306094,1939.6,1939.2,5.15662]
[1741966129855,1.11725094,1939.6,1939.3,5.15644]
[1741966130059,1.11725094,1939.6,1939.2,5.15662]
[1741966130060,0.8231,1939.7,1939.6,5.1557]
[1741966130357,0.798,1940.0,1939.8,5.15506]
[1741966130564,5.19252944,1940.1,1939.7,5.15539]
[1741966130858,5.15486,1940.0,1939.6,10.5435]
[1741966131156,5.15499,1939.9,1939.6,5.388]
[1741966131470,5.15537,1939.8,1939.6,5.388]
[1741966131757,10.34888944,1939.8,1939.6,5.388]
[1741966131951,5.19350944,1939.8,1939.6,5.388]
[1741966132159,5.19350944,1939.8,1939.4,5.15619]
[1741966132359,5.19348944,1939.8,1939.4,5.15619]
[1741966132561,5.79263838,1939.8,1939.4,5.15619]
[1741966133060,5.15547,1939.7,1939.3,5.15646]
[1741966133258,5.15547,1939.7,1939.3,5.15632]
[1741966133459,5.79247838,1939.8,1939.2,10.04319469]
[1741966133460,5.15597,1939.5,1939.2,14.64994469]
[1741966133654,5.15597,1939.5,1939.2,13.93104469]
[1741966133858,5.90777,1939.5,1939.2,0.38629469]
[1741966134034,5.90777,1939.5,1939.1,8.15685]
[1741966134236,5.90777,1939.5,1939.1,8.15682]
[1741966134635,5.94590944,1939.5,1939.1,8.15682]
[1741966134975,1.90010138,1939.5,1938.7,23.212]
[1741966135199,5.15686,1939.2,1938.8,10.31525]
[1741966135479,5.19474944,1939.3,1938.9,5.15753]
[1741966135693,5.19439944,1939.4,1939.0,5.15718]
[1741966135966,5.19367944,1939.7,1939.3,5.15649]
[1741966136134,5.97267944,1939.7,1939.3,5.15649]
[1741966136336,5.97267944,1939.7,1939.3,10.31283]
[1741966136976,0.779,1939.9,1939.5,5.15593]
[1741966137153,0.779,1939.9,1939.6,5.15558]
[1741966137475,5.19296944,1940.0,1939.6,5.15551]
[1741966137652,5.19296944,1940.0,1939.6,5.1556]
[1741966137860,5.15483,1940.0,1939.6,10.31113]
[1741966138059,5.19295944,1940.0,1939.6,10.31108]
[1741966138259,10.34780944,1940.0,1939.6,5.15553]
[1741966138460,5.19295944,1940.0,1939.6,10.31108]
[1741966138661,11.08794,1940.1,1939.7,5.15531]
[1741966138861,5.19293944,1940.0,1939.6,5.15553]
[1741966139051,5.97159944,1940.1,1939.6,5.7226423]
[1741966139254,5.93346,1940.1,1939.7,5.15532]
[1741966139452,5.97159944,1940.1,1939.7,5.1553]
[1741966139654,5.15476,1940.0,1939.6,5.7227723]
[1741966140274,5.15476,1940.0,1939.6,5.7226523]
[1741966140575,5.15525,1939.8,1939.5,5.54702888]
[1741966140777,5.15466,1940.0,1939.6,5.1556]
[1741966141079,10.34814944,1939.9,1939.5,5.54697888]
[1741966141281,5.19312944,1939.9,1939.5,5.54697888]
[1741966141451,5.15521,1939.8,1939.5,0.39113888]
[1741966141776,6.22790738,1939.9,1939.5,0.39113888]
[1741966141777,1.03477794,1939.9,1939.6,5.15559]
[1741966141947,5.15464,1940.0,1939.6,5.15559]
[1741966142147,0.03813944,1939.9,1939.6,5.15559]
[1741966142496,5.1553,1939.8,1939.4,5.87509]
[1741966142680,5.1553,1939.8,1939.4,6.26535009]
[1741966142886,1.34906944,1939.7,1939.4,0.39026009]
[1741966143198,5.15581,1939.6,1939.2,10.53765]
[1741966143349,10.31169,1939.6,1939.2,10.53765]
[1741966143548,5.15602,1939.5,1939.1,5.15683]
[1741966143780,10.31218,1939.5,1939.1,5.15683]
[1741966143967,10.35031944,1939.5,1939.2,3.0]
[1741966144157,5.15625,1939.4,1939.2,3.0]
[1741966144362,5.15625,1939.4,1939.0,10.5182]
[1741966144749,5.15625,1939.4,1939.0,15.67534]
[1741966144949,5.15625,1939.4,1939.0,12.64833788]
[1741966145149,5.15625,1939.4,1939.0,10.51814]
[1741966145385,5.15664,1939.3,1939.0,5.361]
[1741966145607,5.15625,1939.4,1939.0,10.5182]
[1741966145804,5.15665,1939.3,1939.0,5.361]
[1741966146113,5.1569,1939.2,1939.0,5.361]
[1741966146315,5.19477944,1939.3,1939.0,5.361]
[1741966146610,5.15664,1939.3,1939.0,5.361]
[1741966147019,10.31336,1939.3,1939.0,5.361]
[1741966147689,5.15689,1939.2,1939.0,5.361]
[1741966148090,5.15654,1939.3,1939.0,5.361]
[1741966148491,11.10572,1939.6,1939.0,6.52394001]
[1741966148690,0.03813944,1939.5,1939.3,5.15649]
[1741966148887,11.10572,1939.6,1939.3,5.15639]
[1741966149089,5.95,1939.6,1939.2,3.0]
[1741966149491,0.7662,1939.9,1939.3,4.75300364]
[1741966149688,0.7662,1940.2,1939.9,5.15466]
[1741966150024,0.7662,1940.6,1940.4,5.15339]
[1741966150336,0.7662,1940.6,1940.3,5.15381]
[1741966151397,5.99695944,1940.8,1940.3,5.15381]
[1741966151599,5.99695944,1940.8,1940.1,5.15436]
[1741966151600,5.15315,1940.6,1940.1,5.15436]
[1741966151799,5.1536,1940.4,1940.1,1.030896]
[1741966152005,5.15351,1940.5,1940.1,6.185006]
[1741966152215,5.19116944,1940.7,1940.3,5.15374]
[1741966152393,10.34414944,1940.7,1940.3,5.15374]
[1741966152593,5.19107944,1940.7,1940.3,10.49874]
[1741966153000,5.19107944,1940.7,1940.3,5.345]
[1741966153207,5.15335,1940.5,1940.3,5.345]
[1741966153808,0.03813944,1940.6,1940.3,5.345]
[1741966154013,5.95885,1940.8,1940.3,5.345]
[1741966154315,5.99698944,1940.8,1940.4,5.15333]
[1741966154513,5.99698944,1940.8,1940.3,10.49883]
[1741966154694,0.03813944,1940.7,1940.4,5.15347]
[1741966154893,0.03813944,1940.7,1940.3,10.49863]
[1741966155094,0.03813944,1940.7,1940.4,5.15345]
[1741966156098,0.03813944,1940.7,1940.4,5.15344]
[1741966156295,0.8063,1940.8,1940.6,5.15301]
[1741966156823,10.30425,1941.0,1940.6,5.15301]
[1741966156824,5.93153,1941.0,1940.6,5.15301]
[1741966157001,0.81763944,1941.0,1940.7,5.15274]
[1741966157203,0.7795,1941.0,1940.7,5.15274]
[1741966157541,0.7795,1941.0,1940.7,5.15273]
[1741966157702,5.93153,1941.0,1940.6,5.15303]
[1741966157903,5.15265,1940.8,1940.4,5.87234]
[1741966158115,5.15265,1940.8,1940.4,0.7189]
[1741966158448,5.15279,1940.7,1940.4,0.7189]
[1741966158601,5.15265,1940.8,1940.4,5.87243]
[1741966159137,5.15297,1940.7,1940.3,6.36546085]
[1741966159314,6.22160744,1940.7,1940.3,11.51928085]
[1741966159639,5.15268,1940.8,1940.3,15.65238]
[1741966159933,5.19081944,1940.8,1940.3,15.65238]
[1741966160261,5.19081944,1940.8,1940.3,10.49866]
[1741966160732,5.19057944,1940.9,1940.4,5.15344]
[1741966160937,5.19050944,1940.9,1940.4,5.20496876]
[1741966161243,5.15252,1940.8,1940.4,5.15344]
[1741966161600,5.19065944,1940.8,1940.3,10.49879]
[1741966161800,10.30593,1940.7,1940.3,5.345]
[1741966162021,0.82533944,1940.6,1940.3,5.345]
[1741966162211,0.7872,1940.6,1940.3,5.345]
[1741966162422,0.7872,1940.6,1940.3,10.49873]
[1741966162919,0.7872,1940.6,1940.4,5.15355]
[1741966163125,0.7872,1940.6,1940.3,10.49873]
[1741966163299,5.15271,1940.8,1940.3,6.394873]
[1741966163639,5.15293,1940.7,1940.3,10.49883]
[1741966163932,0.7575,1940.9,1940.3,5.345]
[1741966164141,5.94808944,1940.9,1940.5,5.15324]
[1741966164339,0.7575,1940.9,1940.6,5.20442744]
[1741966164505,11.10175,1941.1,1940.6,10.35731744]
[1741966164846,0.7948,1941.1,1940.8,5.15244]
[1741966165163,5.15119,1941.3,1940.9,5.152]
[1741966165438,5.18932944,1941.3,1940.9,5.152]
[1741966165765,5.15146,1941.2,1940.8,5.15249]
[1741966166255,10.30316,1941.2,1940.8,6.237845]
[1741966166456,5.15176,1941.1,1940.7,5.70275]
[1741966166612,5.19028944,1941.0,1940.6,17.02790083]
[1741966166811,5.15234,1940.9,1940.6,11.87486083]
[1741966167014,5.15277,1940.7,1940.6,11.87486083]
[1741966167229,5.15227,1940.9,1940.6,5.71486083]
[1741966167422,5.98033,1941.0,1940.6,10.86780083]
[1741966167653,5.15238,1940.9,1940.6,5.71486083]
[1741966168027,10.30485,1940.9,1940.6,5.71486083]
[1741966168254,5.15267,1940.8,1940.6,5.71486083]
[1741966168435,5.15277,1940.7,1940.6,5.318]
[1741966168758,5.15376,1940.4,1940.1,0.39623196]
[1741966168937,0.7943,1940.5,1940.1,5.55059196]
[1741966169113,5.94762,1940.5,1940.1,8.15436]
[1741966169312,5.15359,1940.4,1940.0,5.15443]
[1741966169515,0.03813944,1940.4,1939.9,0.47067636]
[1741966169819,5.15423,1940.2,1939.9,3.47067636]
[1741966170020,10.30859,1940.2,1939.9,3.47067636]
[1741966170220,5.15448,1940.1,1939.9,0.47067636]
[1741966170429,5.15463,1940.0,1939.9,0.47067636]
[1741966171228,0.03813944,1940.0,1939.2,4.20300364]
[1741966171457,5.95352,1940.1,1939.4,5.15613]
[1741966171458,5.15525,1939.8,1939.4,5.15613]
[1741966171657,5.15559,1939.7,1939.4,3.0]
[1741966171821,5.15574,1939.6,1939.3,5.317]
[1741966172152,5.15574,1939.6,1939.4,3.0]
[1741966172353,5.15574,1939.6,1939.3,5.317]
[1741966172556,5.15623,1939.4,1939.2,0.38737211]
[1741966172850,5.15623,1939.4,1939.0,22.91808]
[1741966173048,10.31265,1939.4,1939.0,22.91808]
[1741966173417,10.31258,1939.4,1939.0,22.91808]
[1741966173616,0.7533,1939.7,1939.1,5.15703]
[1741966173961,5.15571,1939.6,1939.2,5.15676]
[1741966174253,5.15598,1939.5,1939.2,5.15676]
[1741966174413,5.19384944,1939.6,1939.2,10.31333]
[1741966174613,5.90875,1939.7,1939.3,10.31268]
[1741966174814,0.7533,1939.7,1939.4,5.15615]
[1741966175014,5.19265944,1940.1,1939.7,5.15541]
[1741966175283,5.15485,1940.0,1939.6,8.63972364]
[1741966175619,0.03813944,1940.2,1939.4,6.16]
[1741966175620,5.15579,1939.6,1939.4,6.16]
[1741966175826,5.15544,1939.7,1939.3,8.64059364]
[1741966175827,5.15551,1939.7,1939.3,8.64059364]
[1741966176026,5.15551,1939.7,1939.3,10.1953393]
[1741966176261,5.15551,1939.7,1939.3,10.24689767]
[1741966176640,5.92311,1939.7,1939.3,10.1953393]
[1741966176842,5.92311,1939.7,1939.3,8.64059364]
[1741966177138,5.92311,1939.7,1939.3,8.69215201]
[1741966177523,11.11693944,1939.7,1939.3,8.64059364]
[1741966177718,5.15584,1939.6,1939.3,3.48410364]
[1741966177958,10.31174,1939.6,1939.3,3.48410364]
[1741966178128,5.15601,1939.5,1939.3,3.48410364]
[1741966178447,5.15584,1939.6,1939.3,3.48410364]
[1741966178834,5.92318,1939.7,1939.3,8.64039364]
[1741966179034,5.96131944,1939.7,1939.3,8.64039364]
[1741966179248,11.07887,1939.7,1939.3,8.64039364]
[1741966179563,5.92318,1939.7,1939.3,8.69195201]
[1741966179861,16.25948,1940.0,1939.6,8.63962364]
[1741966180068,5.15501,1939.9,1939.6,3.48410364]
[1741966180227,5.15501,1939.9,1939.5,5.15586]
[1741966180426,5.15501,1939.9,1939.5,10.31165]
[1741966180641,5.15501,1939.9,1939.5,5.15579]
[1741966180866,5.15544,1939.7,1939.3,14.80052364]
[1741966181056,5.97692,1939.7,1939.3,11.31644]
[1741966181363,5.15519,1939.8,1939.4,5.15615]
[1741966181666,0.8214,1939.9,1939.4,3.53565815]
[1741966181864,0.8214,1939.9,1939.6,5.15553]
[1741966182164,11.16956944,1939.9,1939.5,5.15596]
[1741966182377,5.97633,1939.9,1939.5,6.53549636]
[1741966182665,5.97633,1939.9,1939.6,5.1557]
[1741966182862,5.97633,1939.9,1939.5,6.53541636]
[1741966183063,0.7508,1940.1,1939.8,5.15517]
[1741966183270,5.15427,1940.2,1939.7,8.63929364]
[1741966183563,5.15457,1940.1,1939.8,5.15516]
[1741966183765,5.15412,1940.2,1939.8,5.155]
[1741966183930,5.15412,1940.2,1939.8,10.31006]
[1741966184126,5.19199944,1940.3,1939.9,6.23719949]
[1741966184127,5.15386,1940.3,1939.9,6.23719949]
[1741966184433,0.7508,1940.4,1940.1,5.15435]
[1741966185337,5.93717,1940.6,1940.2,5.15401]
[1741966185541,5.97530944,1940.6,1940.2,5.15401]
[1741966187060,5.97530944,1940.6,1940.2,5.15395]
[1741966187268,0.82223944,1940.6,1940.1,5.15436]
[1741966187431,5.15345,1940.5,1940.1,10.47236]
[1741966187767,5.15345,1940.5,1940.1,11.51309472]
[1741966187963,11.09038,1940.6,1940.2,5.15397]
[1741966188160,5.15332,1940.5,1940.2,5.15397]
[1741966189872,10.34498944,1940.5,1940.1,11.89159301]
[1741966190163,6.7367,1940.9,1940.1,6.73723301]
[1741966190330,5.95,1941.2,1940.6,3.48410364]
[1741966190662,5.15135,1941.3,1940.9,5.15223]
[1741966190866,5.745075,1941.3,1940.9,5.20365829]
[1741966191160,5.18940944,1941.3,1940.9,0.7189]
[1741966191347,0.7867,1941.4,1940.9,0.7189]
[1741966191348,0.7867,1941.4,1940.9,3.77041635]
[1741966191547,5.18949944,1941.3,1940.9,8.87104]
[1741966191751,10.34088944,1941.3,1940.9,8.87104]
[1741966191959,10.34089944,1941.3,1940.9,8.87104]
[1741966192569,5.15153,1941.2,1940.9,3.0]
[1741966192868,5.15153,1941.2,1940.8,8.15242]
[1741966193169,0.03813944,1941.1,1940.7,6.90383669]
[1741966193467,5.15159,1941.2,1940.8,5.15239]
[1741966193929,5.15172,1941.1,1940.7,6.90396669]
[1741966194133,0.7867,1941.4,1940.7,6.90396669]
[1741966194134,0.7867,1941.4,1940.7,1.80278702]
[1741966194333,10.34082944,1941.3,1940.9,8.63621364]
[1741966194531,5.15149,1941.2,1940.9,3.48410364]
[1741966194769,11.45353238,1941.3,1940.9,8.63624364]
[1741966195063,0.7867,1941.4,1941.1,5.15159]
[1741966195300,0.7711,1941.8,1941.3,5.15118]
[1741966195469,5.14978,1941.9,1941.5,5.15052]
[1741966195665,5.14987,1941.8,1941.4,5.15074]
[1741966195875,5.14987,1941.8,1941.4,5.15082]
[1741966196049,10.29991,1941.8,1941.4,5.15082]
[1741966196251,5.15017,1941.7,1941.3,5.1511]
[1741966196560,5.15047,1941.6,1941.3,5.15116]
[1741966196871,6.29578344,1941.6,1941.2,14.79539364]
[1741966197367,1.14531344,1941.6,1941.2,6.16]
[1741966197547,5.15112,1941.4,1941.2,6.16]
[1741966197742,5.15112,1941.4,1941.1,5.317]
[1741966197743,5.18924944,1941.4,1941.1,5.317]
[1741966197945,5.15042,1941.6,1941.1,5.317]
[1741966198150,5.15075,1941.5,1941.1,15.62017]
[1741966198359,5.15075,1941.5,1941.1,10.46855]
[1741966198540,5.92124,1941.7,1941.3,5.15107]
[1741966198740,5.92124,1941.7,1941.4,5.15091]
[1741966198940,5.15062,1941.6,1941.3,0.7189]
[1741966199261,5.15062,1941.6,1941.2,8.63553364]
[1741966199262,10.3012,1941.6,1941.2,8.63553364]
[1741966199565,5.9213,1941.7,1941.3,5.15111]
[1741966199773,7.66151144,1941.7,1941.2,5.15144]
[1741966199945,7.66151144,1941.7,1941.3,5.15099]
[1741966199946,7.623372,1941.7,1941.3,5.15099]
[1741966200142,11.09987,1941.8,1941.4,5.20226639]
[1741966200336,10.29993,1941.8,1941.4,5.86964]
[1741966200542,4.88649251,1941.8,1941.4,11.07196307]
[1741966200742,5.14996,1941.8,1941.5,5.15049]
[1741966200971,5.14996,1941.8,1941.6,0.515049]
[1741966201274,5.14996,1941.8,1941.4,0.7189]
[1741966201275,5.18809944,1941.8,1941.4,5.8697]
[1741966201574,5.14942,1942.0,1941.6,5.15024]
[1741966201776,5.1488,1942.2,1941.5,8.63475364]
[1741966202083,5.14997,1941.8,1941.6,0.86347536]
[1741966202377,5.14997,1941.8,1941.5,3.48410364]
[1741966202680,5.14994,1941.8,1941.5,3.48410364]
[1741966202860,5.14969,1941.9,1941.5,8.63460364]
[1741966203781,5.91241,1942.2,1941.5,8.63460364]
[1741966203782,0.7635,1942.2,1941.6,5.20185645]
[1741966204079,5.91238,1942.2,1941.8,5.14974]
[1741966204255,5.14888,1942.2,1941.8,6.383614]
[1741966204649,5.14917,1942.1,1941.8,1.233874]
[1741966205052,11.89827,1942.4,1941.9,5.14945]
[1741966205053,6.75,1942.4,1941.9,5.14945]
[1741966205254,5.14875,1942.3,1941.9,5.14945]
[1741966205452,5.14923,1942.1,1941.7,5.15009]
[1741966205652,5.14921,1942.1,1941.7,5.15009]
[1741966206053,5.14882,1942.2,1941.8,5.14982]
[1741966206366,5.18666944,1942.3,1941.8,4.51409464]
[1741966206573,5.18666944,1942.3,1941.8,3.48410364]
[1741966206880,5.14996,1941.8,1941.6,0.7189]
[1741966207068,5.18755944,1942.0,1941.6,5.86918]
[1741966207385,5.15,1941.8,1941.5,3.0]
[1741966207688,5.15023,1941.7,1941.4,4.20300364]
[1741966207882,5.15022,1941.7,1941.4,4.20300364]
[1741966208181,5.14964,1941.9,1941.5,5.15049]
[1741966208547,0.03813944,1941.8,1941.2,7.26453417]
[1741966208783,5.15057,1941.6,1941.2,11.40718417]
[1741966208987,5.15081,1941.5,1941.2,0.38563417]
[1741966209287,0.03813944,1941.6,1941.2,5.15133]
[1741966209288,5.96962,1941.6,1941.2,5.15133]
[1741966209490,5.15084,1941.5,1941.1,3.48410364]
[1741966210001,5.15161,1941.2,1940.9,22.352]
[1741966210372,5.15121,1941.3,1940.9,17.038]
[1741966210373,0.03813944,1941.3,1940.9,17.038]
[1741966210573,5.15156,1941.2,1940.9,17.038]
[1741966210806,10.30323,1941.2,1940.9,18.03087058]
[1741966211105,5.15156,1941.2,1940.9,18.03087058]
[1741966211404,10.30377,1941.1,1940.9,17.038]
[1741966211608,0.03813944,1941.3,1940.9,17.41774732]
[1741966213061,0.81063944,1941.7,1941.3,5.314]
[1741966213394,5.96087944,1941.7,1941.2,8.15143]
[1741966213599,5.15028,1941.7,1941.3,0.815143]
[1741966213771,5.15051,1941.6,1941.2,8.15138]
[1741966214084,5.15015,1941.7,1941.3,5.20253579]
[1741966214290,5.15015,1941.7,1941.3,0.05150579]
[1741966214452,5.15068,1941.5,1941.2,3.0]
[1741966214886,5.15068,1941.5,1941.0,20.11006364]
[1741966214887,1.32798194,1941.5,1941.0,16.62595]
[1741966215085,5.15103,1941.4,1941.0,16.62595]
[1741966215389,5.14933,1942.0,1941.3,5.15113]
[1741966215571,5.15038,1941.7,1941.3,5.15113]
[1741966215757,5.15025,1941.7,1941.3,5.20257289]
[1741966215958,5.15066,1941.5,1941.2,3.7189]
[1741966216276,0.03813944,1941.7,1941.2,4.53546136]
[1741966216605,5.18827944,1941.7,1941.2,6.68680136]
[1741966216890,6.00258944,1942.0,1941.5,5.15047]
[1741966217089,5.14962,1941.9,1941.5,5.15047]
[1741966217587,5.96434,1942.0,1941.6,5.20187811]
[1741966217790,0.8081,1942.3,1941.7,5.67021781]
[1741966217988,10.29857,1942.1,1941.7,5.67021781]
[1741966218191,5.14927,1942.1,1941.7,5.67021781]
[1741966218372,10.29847,1942.1,1941.7,5.67021781]
[1741966218564,10.29903,1942.0,1941.8,0.56702178]
[1741966218765,5.14944,1942.0,1941.7,0.52018781]
[1741966219386,5.1491,1942.1,1941.7,0.52018781]
[1741966219592,5.18694944,1942.2,1941.7,5.67020781]
[1741966219789,10.33597944,1942.2,1941.7,5.67020781]
[1741966220089,5.14921,1942.1,1941.7,0.52018781]
[1741966220465,5.18694944,1942.2,1941.7,5.67024781]
[1741966220668,5.18694944,1942.2,1941.7,10.87165271]
[1741966220971,5.18694944,1942.2,1941.7,5.67009781]
[1741966221171,5.14908,1942.1,1941.7,5.67009781]
[1741966221366,5.14881,1942.2,1941.7,10.87156268]
[1741966221695,5.14881,1942.2,1941.8,5.14981]
[1741966221892,5.95679,1942.3,1941.8,6.95068078]
[1741966222373,5.95,1942.5,1941.8,6.95068078]
[1741966222374,6.7156,1942.5,1942.0,5.14932]
[1741966222574,5.95181944,1942.5,1942.0,5.14919]
[1741966222892,5.14876,1942.3,1941.8,15.10034078]
[1741966223196,5.14875,1942.3,1941.8,12.10030078]
[1741966223392,5.14875,1942.3,1941.9,5.14943]
[1741966223592,10.2975,1942.3,1941.9,1.21003008]
[1741966223894,5.14875,1942.3,1941.9,6.35959008]
[1741966224102,0.7656,1942.5,1942.0,0.05149093]
[1741966224267,0.03813944,1942.6,1942.1,5.14906]
[1741966224470,5.93431,1942.7,1942.3,5.14853]
[1741966224668,5.14811,1942.5,1942.2,0.7189]
[1741966224874,5.14775,1942.6,1942.1,5.14889]
[1741966225103,5.14775,1942.6,1942.2,5.14874]
[1741966225274,5.18588944,1942.6,1942.1,5.62033994]
[1741966225473,5.18588944,1942.6,1942.2,5.14865]
[1741966225724,10.29563,1942.6,1942.2,5.14865]
[1741966226009,5.18588944,1942.6,1942.1,5.62033994]
[1741966226216,10.29574,1942.6,1942.1,5.62033994]
[1741966226514,5.14806,1942.5,1942.1,5.62033994]
[1741966226670,10.29629,1942.5,1942.1,0.47144994]
[1741966226871,5.14845,1942.4,1942.1,0.47144994]
[1741966227097,5.14806,1942.5,1942.1,5.67193661]
[1741966227399,5.14806,1942.5,1942.1,0.52293556]
[1741966227601,5.14806,1942.5,1942.1,5.67186556]
[1741966227785,5.14806,1942.5,1942.1,6.55442731]
[1741966228094,0.03813944,1942.4,1942.1,0.93404737]
[1741966228417,5.18598944,1942.6,1942.2,5.14855]
[1741966228572,0.03813944,1942.6,1942.2,5.14855]
[1741966228900,5.18588944,1942.6,1942.2,5.14855]
[1741966229214,5.18588944,1942.6,1942.1,6.08294737]
[1741966229415,5.18588944,1942.6,1942.2,5.75707474]
[1741966229701,5.14824,1942.5,1942.0,14.66521364]
[1741966230004,5.14831,1942.4,1942.0,14.66521364]
[1741966230201,5.14824,1942.5,1942.1,5.14891]
[1741966230508,5.14824,1942.5,1942.1,5.14885]
[1741966230803,5.14823,1942.5,1942.1,10.29773]
[1741966231102,10.29559,1942.6,1942.2,5.20027268]
[1741966231304,5.14801,1942.5,1942.1,7.13022336]
[1741966231599,5.14801,1942.5,1942.0,14.66531364]
[1741966231600,5.14838,1942.4,1942.0,14.66531364]
[1741966231992,10.29686,1942.4,1942.0,14.66531364]
[1741966232194,5.14867,1942.3,1942.0,5.313]
[1741966232394,5.14897,1942.2,1941.8,10.11389078]
[1741966232594,5.14919,1942.1,1941.7,14.79419364]
[1741966232815,5.92828,1942.3,1941.7,3.48410364]
[1741966233012,0.03813944,1942.2,1941.6,29.64861654]
[1741966233180,5.92825,1942.3,1941.9,5.14941]
[1741966233584,5.14843,1942.4,1942.0,10.29842]
[1741966233776,10.33507944,1942.4,1942.0,6.178952]
[1741966233972,5.92773,1942.5,1942.1,5.20034722]
[1741966234203,5.14756,1942.7,1942.3,5.14841]
[1741966234404,5.14833,1942.4,1942.0,4.20300364]
[1741966234710,5.14833,1942.4,1942.0,9.35215364]
[1741966234881,5.14803,1942.5,1942.1,6.08414536]
[1741966235202,10.29614,1942.5,1942.1,6.08413536]
[1741966235506,5.14829,1942.4,1942.0,9.35226364]
[1741966235680,5.14865,1942.3,1942.0,0.7189]
[1741966235880,5.14865,1942.3,1941.9,10.29882]
[1741966236086,5.14865,1942.3,1941.9,10.29883]
[1741966236293,5.14804,1942.5,1942.1,5.14892]
[1741966236504,5.14804,1942.5,1942.1,6.01222236]
[1741966236706,5.18587944,1942.6,1942.2,5.14878]
[1741966236707,0.03813944,1942.6,1942.2,5.14878]
[1741966236906,5.97986944,1942.7,1942.3,5.14839]
[1741966237205,5.14775,1942.6,1942.3,5.14839]
[1741966237406,5.14775,1942.6,1942.2,11.01633]
[1741966237605,5.94173,1942.7,1942.3,6.250163]
[1741966237807,11.08938,1942.7,1942.3,6.250163]
[1741966238008,5.14803,1942.5,1942.2,0.7189]
[1741966238175,5.14803,1942.5,1942.1,11.32427236]
[1741966238575,5.14776,1942.6,1942.1,11.32420236]
[1741966238909,5.14776,1942.6,1942.2,5.14865]
[1741966239142,5.14909,1942.1,1941.9,6.16]
[1741966239306,5.93272,1942.2,1941.8,3.0]
[1741966239503,5.18727944,1942.1,1941.8,3.0]
[1741966239698,5.93288,1942.2,1941.8,3.0]
[1741966239919,5.14947,1942.0,1941.7,5.312]
[1741966240131,5.14962,1941.9,1941.7,5.312]
[1741966240302,10.33754944,1941.9,1941.6,0.38164727]
[1741966240503,10.33754944,1941.9,1941.5,14.66551364]
[1741966240699,5.14964,1941.9,1941.5,14.66551364]
[1741966241031,5.14969,1941.9,1941.6,1.46655136]
[1741966241226,5.18735944,1942.1,1941.6,11.76706136]
[1741966241227,5.14941,1942.0,1941.6,11.76706136]
[1741966241430,5.18723944,1942.1,1941.6,6.61677136]
[1741966241601,5.18723944,1942.1,1941.6,1.46655136]
[1741966241805,0.03813944,1942.1,1941.7,5.1501]
[1741966242006,5.18728944,1942.1,1941.7,10.96157514]
[1741966242201,10.33654944,1942.1,1941.7,5.81160514]
[1741966242530,5.14936,1942.0,1941.7,5.81177514]
[1741966242932,5.18720944,1942.1,1941.7,10.96176514]
[1741966243125,10.33646944,1942.1,1941.7,5.81165514]
[1741966243454,5.14942,1942.0,1941.7,5.81160514]
[1741966243606,5.18720944,1942.1,1941.8,0.58116051]
[1741966243921,5.93281,1942.2,1941.8,5.73088051]
[1741966244124,0.7839,1942.2,1941.9,5.1495]
[1741966244307,5.14856,1942.3,1941.9,0.05148992]
[1741966244638,10.33543944,1942.3,1941.9,5.77923696]
[1741966244939,10.33543944,1942.3,1941.9,5.72774704]
[1741966245243,10.33543944,1942.3,1941.9,5.77923696]
[1741966245424,0.8152,1942.4,1941.9,9.9820906]
[1741966245609,0.8152,1942.4,1942.1,5.14897]
[1741966245933,5.9635,1942.4,1942.1,1.561019]
[1741966246107,5.9635,1942.4,1942.0,10.46124]
[1741966246310,5.14801,1942.5,1942.1,5.14893]
[1741966246509,0.8244,1942.6,1942.0,10.46131]
[1741966246810,10.29687,1942.4,1942.0,10.46132]
[1741966247033,5.14805,1942.5,1942.1,5.14895]
[1741966247207,0.8244,1942.6,1942.1,1.05124365]
[1741966247534,5.1484,1942.4,1942.1,1.05124365]
[1741966247708,5.148,1942.5,1942.1,6.20022365]
[1741966247908,5.14906,1942.1,1942.0,5.78491371]
[1741966248226,5.18719944,1942.1,1942.0,0.47291371]
[1741966248747,5.14986,1941.8,1941.7,0.47291371]
[1741966249109,5.18799944,1941.8,1941.7,0.47291371]
[1741966249439,5.14986,1941.8,1941.7,0.47291371]
[1741966249636,5.18799944,1941.8,1941.7,0.47291371]
[1741966250309,5.16753563,1941.8,1941.4,10.12961982]
[1741966250510,5.16753563,1941.8,1941.5,1.01296198]
[1741966250728,10.31758563,1941.8,1941.5,1.01296198]
[1741966251040,5.15056,1941.6,1941.4,0.47291371]
[1741966251210,5.94088944,1941.5,1941.4,0.47291371]
[1741966252033,5.97624,1941.1,1940.7,5.87166]